bitfinex/quotes_SOLUSD_20251120
["timestamp","ask_amount","ask_price","bid_price","bid_amount"]
[1763662191276,0.72,133.78,133.76,12.20877766]
[1763662191576,1.43593088,133.79,133.77,12.20877766]
[1763662191750,1.43593088,133.79,133.78,12.20877766]
[1763662191956,2.15593088,133.79,133.78,12.20877766]
[1763662192475,1.43593088,133.79,133.78,12.20877766]
[1763662194188,1.43593088,133.79,133.78,30.32973766]
[1763662197368,1.43593088,133.79,133.77,18.12096]
[1763662197570,1.43593088,133.79,133.78,12.20877766]
[1763662198592,1.43593088,133.79,133.78,30.32973766]
[1763662199469,1.43593088,133.79,133.78,18.12096]
[1763662199678,1.43593088,133.79,133.78,30.32973766]
[1763662200302,1.43593088,133.79,133.72,0.74783128]
[1763662200303,14.36470854,133.79,133.66,1.99999999]
[1763662200473,0.72,133.78,133.73,12.20877766]
[1763662200861,0.72,133.78,133.74,12.20877766]
[1763662201166,0.72,133.78,133.71,1.84]
[1763662201510,12.20877766,133.76,133.71,1.84]
[1763662201663,0.72,133.78,133.71,1.84]
[1763662201664,0.72,133.78,133.75,12.20877766]
[1763662201861,0.72,133.78,133.77,12.20877766]
[1763662202263,1.43593088,133.79,133.77,30.32973766]
[1763662202465,1.43593088,133.79,133.75,1.84]
[1763662202466,1.43593088,133.79,133.78,12.20877766]
[1763662203087,1.43593088,133.79,133.77,18.12096]
[1763662203295,1.43593088,133.79,133.78,12.20877766]
[1763662203894,1.43593088,133.79,133.78,19.68373654]
[1763662204080,1.43593088,133.79,133.78,12.20877766]
[1763662204283,1.43593088,133.79,133.75,1.84]
[1763662204487,0.72,133.78,133.75,1.84]
[1763662204716,0.72,133.78,133.77,12.20877766]
[1763662204918,1.43593088,133.79,133.77,12.20877766]
[1763662205114,1.43593088,133.79,133.75,1.84]
[1763662205115,0.72,133.78,133.75,1.84]
[1763662205601,0.72,133.78,133.75,14.04877766]
[1763662205802,0.72,133.78,133.73,12.20877766]
[1763662205803,12.92877766,133.78,133.73,12.20877766]
[1763662205985,12.20877766,133.77,133.72,14.04877766]
[1763662206183,0.72,133.77,133.74,12.20877766]
[1763662206390,1.43593088,133.79,133.72,1.84]
[1763662206391,0.72,133.76,133.72,1.84]
[1763662206617,0.72,133.76,133.74,12.20877766]
[1763662206811,0.72,133.76,133.75,12.20877766]
[1763662207182,0.72,133.76,133.72,1.84]
[1763662207710,12.20877766,133.74,133.69,14.04877766]
[1763662207900,12.92877766,133.73,133.68,14.04877766]
[1763662208410,0.72,133.72,133.69,12.20877766]
[1763662208789,0.72,133.72,133.68,1.84]
[1763662209207,12.92877766,133.72,133.68,1.84]
[1763662209398,0.72,133.72,133.68,14.04877766]
[1763662209603,0.72,133.74,133.71,12.20877766]
[1763662209802,12.20877766,133.73,133.68,14.04877766]
[1763662210018,12.20877766,133.73,133.68,1.84]
[1763662210218,0.72,133.72,133.69,12.20877766]
[1763662210423,0.72,133.72,133.7,12.20877766]
[1763662210622,0.72,133.72,133.71,12.20877766]
[1763662210926,0.72,133.72,133.69,12.20877766]
[1763662211124,0.72,133.72,133.68,1.84]
[1763662211332,0.72,133.72,133.69,12.20877766]
[1763662211631,0.72,133.72,133.7,12.20877766]
[1763662211808,0.72,133.72,133.71,12.20877766]
[1763662212610,0.72,133.72,133.68,1.84]
[1763662212902,12.20877766,133.71,133.64,0.2]
[1763662213122,0.72,133.72,133.68,12.20877766]
[1763662213305,0.72,133.72,133.71,12.20877766]
[1763662213703,0.72,133.74,133.71,12.20877766]
[1763662214035,214.3,133.8,133.73,12.20877766]
[1763662214213,1.99999999,133.84,133.75,18.12096]
[1763662214214,2.15593088,133.79,133.75,18.12096]
[1763662214410,1.43593088,133.79,133.78,12.20877766]
[1763662214627,1.43593088,133.79,133.77,12.20877766]
[1763662214933,0.72,133.78,133.76,1.84]
[1763662215147,12.92877766,133.78,133.73,1.84]
[1763662215438,12.20877766,133.76,133.72,12.20877766]
[1763662215741,12.20877766,133.76,133.7,19.96096]
[1763662215742,12.92877766,133.77,133.73,12.20877766]
[1763662215908,0.72,133.77,133.73,12.20877766]
[1763662216108,0.72,133.76,133.74,12.20877766]
[1763662216403,0.72,133.76,133.7,1.84]
[1763662216404,0.72,133.76,133.7,19.96096]
[1763662216602,0.72,133.76,133.74,12.20877766]
[1763662217011,0.72,133.76,133.7,1.84]
[1763662217225,12.92877766,133.76,133.71,12.20877766]
[1763662217414,0.72,133.75,133.7,1.84]
[1763662217623,0.72,133.75,133.71,12.20877766]
[1763662217624,12.92877766,133.75,133.71,12.20877766]
[1763662217831,0.72,133.75,133.71,12.20877766]
[1763662218025,0.72,133.74,133.71,12.20877766]
[1763662218412,0.72,133.74,133.7,14.04877766]
[1763662218413,12.92877766,133.74,133.7,14.04877766]
[1763662218604,12.20877766,133.71,133.64,0.2]
[1763662218807,12.20877766,133.7,133.65,14.04877766]
[1763662219024,50.72,133.73,133.64,0.2]
[1763662219025,62.20877766,133.71,133.66,12.20877766]
[1763662219226,50.0,133.71,133.66,12.20877766]
[1763662219427,50.0,133.71,133.64,0.2]
[1763662219428,0.72,133.7,133.67,12.20877766]
[1763662219609,50.0,133.76,133.69,12.20877766]
[1763662219808,0.72,133.75,133.66,19.96096]
[1763662220010,0.72,133.75,133.71,12.20877766]
[1763662220231,0.72,133.75,133.68,18.12096]
[1763662220540,12.20877766,133.73,133.66,1.84]
[1763662220712,12.20877766,133.73,133.68,12.20877766]
[1763662220912,12.20877766,133.7,133.66,1.84]
[1763662221431,0.7,133.69,133.66,1.84]
[1763662222020,0.7,133.69,133.64,0.2]
[1763662222276,12.20877766,133.68,133.64,0.2]
[1763662222727,0.7,133.67,133.64,0.2]
[1763662223034,0.7,133.67,133.64,12.40877766]
[1763662223227,62.20877766,133.7,133.65,12.20877766]
[1763662223411,0.7,133.67,133.65,12.20877766]
[1763662224019,0.7,133.67,133.64,0.2]
[1763662224228,0.7,133.73,133.66,12.20877766]
[1763662224532,0.7,133.73,133.71,12.20877766]
[1763662224845,0.7,133.73,133.67,1.84]
[1763662225142,12.20877766,133.72,133.67,14.04877766]
[1763662225544,0.7,133.73,133.66,12.20877766]
[1763662225545,12.90877766,133.71,133.66,12.20877766]
[1763662225748,12.20877766,133.7,133.64,2.04]
[1763662225925,0.7,133.69,133.64,2.04]
[1763662226123,0.7,133.69,133.66,12.20877766]
[1763662226330,0.7,133.69,133.64,2.04]
[1763662226646,0.7,133.69,133.65,12.20877766]
[1763662227033,0.7,133.69,133.67,12.20877766]
[1763662227528,0.7,133.72,133.65,18.12096]
[1763662227730,0.7,133.72,133.64,0.2]
[1763662227928,0.7,133.72,133.66,1.84]
[1763662227929,12.90877766,133.72,133.66,1.84]
[1763662228154,12.90877766,133.72,133.67,12.20877766]
[1763662228353,12.90877766,133.71,133.66,14.04877766]
[1763662228546,12.20877766,133.7,133.66,1.84]
[1763662228733,0.7,133.69,133.66,1.84]
[1763662229131,0.7,133.69,133.66,9.61912988]
[1763662229536,0.7,133.73,133.68,7.77912988]
[1763662229735,0.7,133.72,133.7,7.77912988]
[1763662229945,0.7,133.74,133.71,7.77912988]
[1763662230147,0.7,133.74,133.72,7.77912988]
[1763662230346,0.7,133.74,133.7,1.84]
[1763662230547,0.7,133.74,133.73,7.77912988]
[1763662230753,50.0,133.77,133.7,1.84]
[1763662230754,0.69,133.77,133.7,1.84]
[1763662230970,0.69,133.76,133.7,1.84]
[1763662231172,0.69,133.76,133.72,7.77912988]
[1763662231337,0.69,133.76,133.73,7.77912988]
[1763662231836,0.69,133.76,133.75,7.77912988]
[1763662232032,0.69,133.76,133.73,7.77912988]
[1763662232248,0.69,133.78,133.74,7.77912988]
[1763662232450,0.69,133.78,133.75,7.77912988]
[1763662232767,50.0,133.73,133.64,0.2]
[1763662232973,50.0,133.71,133.64,0.2]
[1763662233289,7.77912988,133.7,133.65,7.77912988]
[1763662233587,8.46912988,133.7,133.65,7.77912988]
[1763662233764,8.46912988,133.69,133.64,7.97912988]
[1763662234145,0.69,133.68,133.64,7.97912988]
[1763662234769,0.69,133.68,133.65,7.77912988]
[1763662234946,0.69,133.68,133.66,7.77912988]
[1763662235133,0.69,133.68,133.65,7.77912988]
[1763662236066,0.69,133.68,133.64,0.2]
[1763662236365,0.69,133.68,133.64,7.97912988]
[1763662237247,0.69,133.68,133.65,7.77912988]
[1763662237456,0.69,133.68,133.64,7.97912988]
[1763662238256,0.69,133.68,133.65,7.77912988]
[1763662238659,0.69,133.68,133.66,7.77912988]
[1763662239458,58.46912988,133.71,133.66,7.77912988]
[1763662239680,0.69,133.7,133.66,7.77912988]
[1763662240963,0.69,133.7,133.65,19.96096]
[1763662241162,0.69,133.7,133.67,7.77912988]
[1763662241884,0.69,133.7,133.66,7.77912988]
[1763662242553,0.69,133.7,133.67,7.77912988]
[1763662242957,0.69,133.7,133.66,7.77912988]
[1763662243151,0.69,133.7,133.65,1.84]
[1763662243152,0.69,133.7,133.65,19.96096]
[1763662243383,7.77912988,133.68,133.65,1.84]
[1763662243763,0.69,133.67,133.65,1.84]
[1763662245898,8.46912988,133.67,133.64,0.2]
[1763662246204,0.69,133.67,133.64,0.2]
[1763662246408,7.77912988,133.65,133.55,0.4]
[1763662246583,7.77912988,133.65,133.6,7.77912988]
[1763662246789,0.69,133.64,133.6,7.77912988]
[1763662247606,0.69,133.64,133.58,18.12096]
[1763662247814,7.77912988,133.63,133.56,1.84]
[1763662248003,7.77912988,133.63,133.57,7.77912988]
[1763662248198,8.46912988,133.63,133.57,7.77912988]
[1763662248381,0.69,133.62,133.55,0.2]
[1763662248708,8.46912988,133.62,133.57,7.77912988]
[1763662248913,7.77912988,133.6,133.55,9.81912988]
[1763662249097,7.77912988,133.59,133.55,0.2]
[1763662249485,8.46912988,133.58,133.55,0.2]
[1763662249683,0.69,133.58,133.55,0.2]
[1763662249884,0.69,133.57,133.55,0.2]
[1763662251410,50.0,133.6,133.55,0.2]
[1763662251411,50.0,133.63,133.56,9.81912988]
[1763662251612,50.0,133.66,133.62,7.77912988]
[1763662251782,1.99999999,133.73,133.63,7.77912988]
[1763662251783,50.0,133.7,133.63,7.77912988]
[1763662251981,50.0,133.68,133.58,0.2]
[1763662252316,57.77912988,133.68,133.63,7.77912988]
[1763662252498,8.44912988,133.67,133.62,7.77912988]
[1763662252808,0.67,133.66,133.62,7.77912988]
[1763662253394,58.44912988,133.66,133.56,1.84]
[1763662253586,58.44912988,133.66,133.56,20.16096]
[1763662253587,50.67,133.66,133.56,20.16096]
[1763662253789,0.67,133.65,133.57,18.12096]
[1763662254001,0.67,133.65,133.62,7.77912988]
[1763662254283,0.67,133.65,133.63,7.77912988]
[1763662254502,0.67,133.65,133.62,7.77912988]
[1763662256326,8.44912988,133.65,133.6,7.77912988]
[1763662256688,0.67,133.64,133.61,7.77912988]
[1763662257111,0.67,133.64,133.58,18.12096]
[1763662257296,0.67,133.64,133.61,7.77912988]
[1763662257494,50.0,133.67,133.59,18.12096]
[1763662257799,0.67,133.68,133.65,7.77912988]
[1763662257997,7.77912988,133.7,133.51,4.1117344]
[1763662257998,18.12096,133.66,133.51,4.1117344]
[1763662258194,18.12096,133.66,133.44,0.2]
[1763662258195,50.0,133.46,133.44,0.2]
[1763662258395,50.0,133.47,133.44,0.2]
[1763662258599,50.0,133.49,133.44,0.2]
[1763662258804,5.01313904,133.48,133.44,7.97912988]
[1763662258985,5.5597243,133.47,133.44,4.22344414]
[1763662259187,5.5597243,133.46,133.42,7.77912988]
[1763662259407,5.5597243,133.45,133.41,2.06]
[1763662259718,25.90008988,133.52,133.42,7.77912988]
[1763662259719,5.5597243,133.44,133.42,7.77912988]
[1763662259933,5.5597243,133.43,133.42,7.77912988]
[1763662260141,57.77912988,133.48,133.42,7.77912988]
[1763662260318,13.32883704,133.47,133.42,7.77912988]
[1763662260512,5.54970716,133.46,133.41,10.55912988]
[1763662260714,5.54970716,133.45,133.41,10.55912988]
[1763662260918,5.54970716,133.44,133.41,10.55912988]
[1763662261237,57.77912988,133.48,133.42,7.77912988]
[1763662261441,5.53859551,133.47,133.42,7.77912988]
[1763662261634,5.53859551,133.47,133.41,0.2]
[1763662261635,57.77912988,133.44,133.41,0.2]
[1763662261818,5.53859551,133.43,133.41,0.2]
[1763662262012,5.53859551,133.42,133.41,0.2]
[1763662262525,50.0,133.48,133.41,8.69912988]
[1763662262723,5.5263922,133.47,133.43,7.77912988]
[1763662262910,5.5263922,133.46,133.43,7.77912988]
[1763662263108,5.5263922,133.45,133.42,1.86]
[1763662263440,50.0,133.51,133.44,8.49912988]
[1763662263642,5.51880765,133.5,133.45,7.77912988]
[1763662263828,5.51880765,133.49,133.45,7.77912988]
[1763662264011,5.51880765,133.48,133.45,7.77912988]
[1763662264208,50.0,133.56,133.47,7.77912988]
[1763662264411,5.514214,133.55,133.52,7.77912988]
[1763662264612,5.514214,133.54,133.53,7.77912988]
[1763662264826,57.77912988,133.58,133.52,7.77912988]
[1763662266050,7.77912988,133.57,133.52,1.86]
[1763662266546,50.0,133.58,133.52,9.63912988]
[1763662266713,13.73987569,133.65,133.54,7.77912988]
[1763662266714,57.77912988,133.6,133.54,7.77912988]
[1763662266913,57.77912988,133.6,133.53,0.72]
[1763662266914,50.0,133.64,133.56,7.77912988]
[1763662267136,7.77912988,133.65,133.59,7.77912988]
[1763662267339,7.77912988,133.67,133.61,7.77912988]
[1763662267519,57.77912988,133.68,133.62,9.63912988]
[1763662267850,50.0,133.68,133.64,7.77912988]
[1763662268220,50.0,133.68,133.63,8.49912988]
[1763662268538,57.77912988,133.68,133.63,8.49912988]
[1763662268913,50.0,133.68,133.63,8.49912988]
[1763662269121,21.98095999,133.74,133.65,7.77912988]
[1763662269122,50.0,133.71,133.65,7.77912988]
[1763662269749,57.77912988,133.71,133.65,8.49912988]
[1763662269948,12.21643956,133.77,133.68,7.77912988]
[1763662269949,50.0,133.73,133.68,7.77912988]
[1763662270125,50.0,133.73,133.62,9.34385573]
[1763662270126,50.0,133.77,133.71,7.77912988]
[1763662270320,1.43593088,133.79,133.73,7.77912988]
[1763662270321,51.43593088,133.79,133.73,7.77912988]
[1763662270520,51.43593088,133.79,133.72,1.86]
[1763662270521,1.43593088,133.79,133.72,1.86]
[1763662270816,1.43593088,133.79,133.73,0.72]
[1763662271417,1.43593088,133.79,133.74,1.86]
[1763662271625,1.43593088,133.79,133.78,7.77912988]
[1763662271840,0.1,133.81,133.8,18.12096]
[1763662272038,0.1,133.81,133.8,28.48008988]
[1763662272240,0.1,133.82,133.8,28.48008988]
[1763662272441,0.67,133.9,133.81,8.49912988]
[1763662272620,0.67,133.9,133.82,18.12096]
[1763662272820,50.67,133.9,133.82,18.84096]
[1763662273125,7.77912988,133.91,133.83,2.58]
[1763662273326,7.77912988,133.91,133.85,7.77912988]
[1763662273644,8.44912988,133.9,133.83,0.72]
[1763662273946,50.67,133.9,133.84,1.86]
[1763662274144,0.67,133.89,133.84,9.63912988]
[1763662274445,50.0,133.95,133.88,7.77912988]
[1763662274642,50.0,133.95,133.89,1.86]
[1763662274963,8.44912988,133.94,133.9,1.86]
[1763662275169,0.67,133.94,133.9,1.86]
[1763662275367,50.0,133.95,133.9,1.86]
[1763662275368,0.67,133.93,133.9,1.86]
[1763662275745,7.77912988,133.95,133.9,1.86]
[1763662275942,0.67,133.95,133.9,2.58]
[1763662276282,50.0,133.97,133.92,7.77912988]
[1763662276580,8.44912988,133.98,133.93,7.77912988]
[1763662276741,0.67,133.98,133.92,7.77912988]
[1763662277078,50.67,133.97,133.87,18.12096]
[1763662277372,50.67,133.97,133.91,7.77912988]
[1763662277543,8.44912988,133.97,133.9,0.72]
[1763662277748,7.77912988,133.95,133.88,20.70096]
[1763662277946,8.44912988,133.96,133.9,7.77912988]
[1763662278165,0.67,133.96,133.92,7.77912988]
[1763662278347,0.67,133.96,133.93,1.86]
[1763662279146,7.77912988,133.94,133.92,1.86]
[1763662279361,0.67,133.96,133.92,1.86]
[1763662279573,7.77912988,133.95,133.92,1.86]
[1763662279748,0.67,133.96,133.92,1.86]
[1763662279942,0.67,133.95,133.92,1.86]
[1763662280152,8.44912988,133.95,133.92,1.86]
[1763662280351,8.44912988,133.95,133.84,0.7]
[1763662280352,7.77912988,133.93,133.84,0.7]
[1763662280541,7.77912988,133.93,133.78,19.95999999]
[1763662280542,7.77912988,133.93,133.85,0.7]
[1763662280743,0.66,133.94,133.85,0.7]
[1763662280744,7.77912988,133.92,133.86,1.86]
[1763662281070,7.77912988,133.87,133.79,0.7]
[1763662281269,7.77912988,133.87,133.84,1.86]
[1763662281571,0.66,133.97,133.89,18.12096]
[1763662281754,0.66,133.97,133.9,1.86]
[1763662281956,8.43912988,133.97,133.92,7.77912988]
[1763662282162,0.66,133.97,133.92,7.77912988]
[1763662282368,0.66,133.97,133.93,7.77912988]
[1763662282564,0.66,133.97,133.92,7.77912988]
[1763662282858,7.77912988,134.01,133.95,7.77912988]
[1763662283059,8.43912988,134.02,133.97,7.77912988]
[1763662283253,0.66,134.02,133.98,7.77912988]
[1763662283442,50.0,134.04,133.99,7.77912988]
[1763662283443,58.43912988,134.04,133.99,7.77912988]
[1763662283960,8.43912988,134.04,133.99,7.77912988]
[1763662284142,0.66,134.07,134.02,7.77912988]
[1763662284345,51.93593088,134.08,134.02,7.77912988]
[1763662284346,1.93593088,134.08,134.03,1.86]
[1763662284567,10.37506076,134.08,134.03,9.63912988]
[1763662284871,8.43912988,134.07,134.03,1.86]
[1763662285052,8.43912988,134.07,134.0,0.7]
[1763662285243,1.93593088,134.08,134.02,7.77912988]
[1763662285445,9.71506076,134.08,134.02,7.77912988]
[1763662285645,2.59593088,134.08,134.02,7.77912988]
[1763662285846,1.93593088,134.08,134.05,7.77912988]
[1763662286268,1.93593088,134.08,134.04,7.77912988]
[1763662286482,9.78882769,134.07,133.95,42.63095999]
[1763662286658,9.78882769,134.07,133.98,0.7]
[1763662286659,7.77912988,134.04,133.98,0.7]
[1763662286858,7.77912988,134.04,133.99,7.77912988]
[1763662287188,9.78882769,134.02,133.94,0.7]
[1763662287352,0.66,134.01,133.95,1.86]
[1763662287552,7.77912988,134.0,133.95,9.63912988]
[1763662287779,8.43912988,134.0,133.95,9.63912988]
[1763662288088,8.43912988,133.99,133.95,1.86]
[1763662288267,7.93912988,133.99,133.95,1.86]
[1763662288590,7.77912988,133.98,133.95,1.86]
[1763662288878,50.0,134.0,133.94,1.86]
[1763662289063,12.13944583,133.99,133.94,1.86]
[1763662289395,12.13944583,133.97,133.91,0.7]
[1763662289568,12.13944583,133.96,133.92,1.86]
[1763662289949,50.0,133.98,133.92,1.86]
[1763662290151,50.0,133.96,133.89,0.7]
[1763662290351,12.13944583,133.94,133.9,1.86]
[1763662290546,12.13944583,133.95,133.9,1.86]
[1763662291077,50.0,133.97,133.9,1.86]
[1763662291278,50.0,133.99,133.93,12.13944583]
[1763662291452,50.0,134.03,133.95,12.13944583]
[1763662291781,12.13944583,134.02,133.96,1.86]
[1763662292072,12.13944583,134.01,133.96,1.86]
[1763662292484,12.13944583,134.0,133.96,1.86]
[1763662292777,12.13944583,134.01,133.96,13.99944583]
[1763662292955,12.13944583,134.01,133.96,1.86]
[1763662293155,12.80944583,134.0,133.96,1.86]
[1763662293556,12.80944583,133.99,133.96,1.86]
[1763662293760,12.13944583,133.98,133.96,1.86]
[1763662294279,27.90978769,134.03,133.96,1.86]
[1763662294280,0.67,134.02,133.96,1.86]
[1763662294479,12.13944583,133.98,133.96,1.86]
[1763662294973,12.13944583,133.98,133.93,12.13944583]
[1763662295278,12.13944583,133.98,133.95,1.86]
[1763662295849,0.67,133.97,133.9,18.12096]
[1763662296055,12.13944583,133.92,133.85,0.72]
[1763662296277,12.13944583,133.91,133.86,12.13944583]
[1763662296477,12.13944583,133.91,133.86,1.86]
[1763662296782,12.80944583,133.9,133.86,1.86]
[1763662297001,50.0,133.93,133.86,14.71944583]
[1763662297295,0.67,133.95,133.87,0.72]
[1763662297471,12.13944583,133.92,133.87,0.72]
[1763662297672,12.13944583,133.93,133.88,12.13944583]
[1763662297869,12.13944583,133.92,133.87,12.85944583]
[1763662298094,0.67,133.95,133.88,12.13944583]
[1763662298257,50.0,133.94,133.86,13.99944583]
[1763662298458,12.13944583,133.93,133.87,12.85944583]
[1763662298668,50.0,133.94,133.87,12.85944583]
[1763662298867,12.13944583,133.94,133.89,12.13944583]
[1763662299072,0.67,133.95,133.88,12.85944583]
[1763662299370,176.43944583,134.0,133.91,18.12096]
[1763662299578,1.99999999,134.06,133.91,18.12096]
[1763662299579,50.67,133.99,133.92,1.86]
[1763662299888,12.80944583,133.99,133.93,12.13944583]
[1763662300089,12.13944583,133.98,133.93,12.13944583]
[1763662300305,12.13944583,133.98,133.92,2.58]
[1763662300466,12.13944583,133.96,133.92,1.86]
[1763662300790,0.67,133.97,133.92,1.86]
[1763662301095,12.13944583,133.94,133.87,0.72]
[1763662301307,12.13944583,133.93,133.88,13.99944583]
[1763662301594,12.13944583,133.94,133.89,12.13944583]
[1763662301801,12.80944583,133.96,133.9,12.13944583]
[1763662302002,50.67,133.99,133.92,12.13944583]
[1763662302169,12.13944583,133.97,133.91,0.72]
[1763662302561,0.67,133.97,133.89,0.72]
[1763662302789,12.13944583,133.96,133.91,12.13944583]
[1763662302989,12.80944583,133.97,133.92,1.86]
[1763662303192,12.80944583,133.97,133.92,13.99944583]
[1763662303574,12.13944583,133.96,133.92,1.86]
[1763662303878,0.67,133.96,133.92,1.86]
[1763662304081,0.67,133.95,133.83,35.12153264]
[1763662304290,12.80944583,133.95,133.87,0.72]
[1763662304487,12.80944583,133.95,133.9,12.13944583]
[1763662304670,12.13944583,133.96,133.91,13.99944583]
[1763662304872,12.13944583,133.95,133.9,12.13944583]
[1763662305071,12.13944583,133.95,133.91,1.86]
[1763662305314,62.80944583,133.94,133.87,0.72]
[1763662305468,12.13944583,133.9,133.84,0.72]
[1763662305679,12.13944583,133.88,133.79,0.72]
[1763662305892,12.13944583,133.87,133.82,12.13944583]
[1763662306068,12.13944583,133.87,133.82,12.85944583]
[1763662306268,50.67,133.9,133.81,18.12096]
[1763662306269,12.13944583,133.88,133.83,12.85944583]
[1763662306707,12.13944583,133.87,133.83,0.72]
[1763662307274,50.0,133.9,133.82,12.13944583]
[1763662307493,0.67,133.89,133.83,12.13944583]
[1763662307804,12.13944583,133.88,133.83,12.13944583]
[1763662308179,12.80944583,133.88,133.83,12.13944583]
[1763662308378,12.80944583,133.87,133.82,12.13944583]
[1763662308791,12.13944583,133.87,133.82,12.85944583]
[1763662309199,50.67,133.9,133.82,12.13944583]
[1763662309511,0.67,133.89,133.8,1.84]
[1763662309804,0.67,133.89,133.75,29.90978768]
[1763662309805,55.46543595,133.88,133.81,1.84]
[1763662310022,50.67,133.89,133.81,2.56]
[1763662310307,6.1503075,133.88,133.82,12.13944583]
[1763662310471,0.67,133.88,133.81,1.84]
[1763662310817,6.18006292,133.87,133.81,13.97944583]
[1763662311118,6.18006292,133.87,133.82,12.13944583]
[1763662311119,5.48006292,133.86,133.82,12.13944583]
[1763662311296,5.49780991,133.85,133.83,0.72]
[1763662311482,12.13944583,133.88,133.83,12.85944583]
[1763662311676,12.13944583,133.86,133.81,1.84]
[1763662311879,5.49837777,133.85,133.81,1.84]
[1763662312071,12.83944583,133.86,133.81,14.69944583]
[1763662312267,5.51300165,133.85,133.81,13.97944583]
[1763662312483,10.47365935,133.84,133.81,1.84]
[1763662312685,17.65244748,133.83,133.81,1.84]
[1763662312927,0.7,133.84,133.81,1.84]
[1763662312928,5.51300165,133.82,133.81,1.84]
[1763662313128,4.96153666,133.83,133.81,1.84]
[1763662313302,4.96153666,133.82,133.81,1.84]
[1763662313832,4.97081783,133.82,133.81,1.84]
[1763662314012,4.97081783,133.84,133.81,1.84]
[1763662314327,12.13944583,133.82,133.74,0.72]
[1763662314487,12.13944583,133.82,133.75,1.86]
[1763662314488,12.13944583,133.78,133.75,1.86]
[1763662314832,10.49909427,133.77,133.75,1.86]
[1763662315122,4.98228024,133.76,133.75,1.86]
[1763662315323,12.13944583,133.8,133.75,14.71944583]
[1763662315529,4.98318455,133.79,133.76,0.72]
[1763662315822,56.25716212,133.82,133.76,0.72]
[1763662316038,17.12257355,133.81,133.76,12.85944583]
[1763662316195,4.98312772,133.8,133.76,12.85944583]
[1763662316392,4.98312772,133.79,133.76,12.85944583]
[1763662316597,4.98312772,133.78,133.76,12.85944583]
[1763662316820,56.25716212,133.82,133.77,0.72]
[1763662317024,12.13944583,133.8,133.77,0.72]
[1763662317326,11.24109253,133.81,133.77,0.72]
[1763662317327,4.98393041,133.79,133.77,0.72]
[1763662317484,4.98034963,133.8,133.77,12.85944583]
[1763662317689,6.25716212,133.84,133.79,12.13944583]
[1763662317920,10.456202,133.83,133.8,14.69944583]
[1763662318124,10.456202,133.82,133.8,2.56]
[1763662318418,10.456202,133.81,133.8,1.84]
[1763662318992,5.4762272,133.81,133.8,14.69944583]
[1763662319204,4.97821815,133.86,133.8,14.69944583]
[1763662319409,4.97821815,133.85,133.83,12.13944583]
[1763662319607,12.13944583,133.87,133.82,12.13944583]
[1763662319907,4.97705657,133.86,133.82,12.13944583]
[1763662320220,4.97705657,133.86,133.77,0.72]
[1763662320221,12.13944583,133.83,133.77,0.72]
[1763662320399,56.25716212,133.87,133.8,12.13944583]
[1763662320720,12.13944583,133.82,133.78,1.84]
[1763662320887,50.0,133.85,133.78,1.84]
[1763662320888,4.97673395,133.81,133.79,1.84]
[1763662321093,4.97673395,133.8,133.79,1.84]
[1763662321312,4.97609219,133.82,133.79,14.69944583]
[1763662321589,12.13944583,133.81,133.79,1.84]
[1763662321793,4.97457154,133.8,133.79,1.84]
[1763662322005,4.97457154,133.8,133.75,12.13944583]
[1763662322006,17.81562181,133.8,133.75,12.13944583]
[1763662322322,0.7,133.8,133.76,13.97944583]
[1763662322491,5.67356403,133.8,133.76,1.84]
[1763662322693,4.97356403,133.8,133.76,1.84]
[1763662322924,4.97356403,133.8,133.76,14.69944583]
[1763662323125,5.67356403,133.8,133.76,1.84]
[1763662323325,0.7,133.8,133.76,1.84]
[1763662323513,12.83944583,133.79,133.76,1.84]